bitfinex/quotes_BTCUSD_20250422
["timestamp","ask_amount","ask_price","bid_price","bid_amount"]
[1745342567069,0.0038578,90716.0,90715.0,0.2204707]
[1745342567513,0.0008578,90716.0,90715.0,0.2204707]
[1745342567939,0.0018578,90716.0,90715.0,0.2204707]
[1745342568368,1.0058578,90716.0,90715.0,0.2204707]
[1745342572745,1.0058578,90716.0,90711.0,0.01102402]
[1745342572746,1.0058578,90716.0,90711.0,0.22048004]
[1745342572955,1.0058578,90716.0,90711.0,0.22048011]
[1745342573168,1.0058578,90716.0,90713.0,0.22047492]
[1745342573307,1.0058578,90716.0,90715.0,0.2204707]
[1745342573553,1.0048578,90716.0,90715.0,0.2204707]
[1745342573754,1.0008578,90716.0,90715.0,0.2204707]
[1745342574170,1.0038578,90716.0,90711.0,0.22148031]
[1745342574373,1.0038578,90716.0,90712.0,0.22047748]
[1745342574629,1.0038578,90716.0,90711.0,0.001]
[1745342574630,1.0008578,90716.0,90711.0,0.001]
[1745342574827,1.0008578,90716.0,90705.0,0.01102475]
[1745342574979,0.11375594,90715.0,90710.0,0.22048206]
[1745342575175,0.11375594,90715.0,90714.0,0.22047313]
[1745342575402,1.0008578,90716.0,90713.0,0.22047556]
[1745342575699,1.0008578,90716.0,90714.0,0.22047309]
[1745342575877,1.0058578,90716.0,90714.0,0.22047309]
[1745342576254,1.0008578,90716.0,90714.0,0.22047309]
[1745342576420,1.0018578,90716.0,90715.0,0.2204707]
[1745342576844,1.0048578,90716.0,90715.0,0.2204707]
[1745342577046,1.0058578,90716.0,90715.0,0.2204707]
[1745342577271,1.0008578,90716.0,90715.0,0.2204707]
[1745342577469,1.0018578,90716.0,90715.0,0.2204707]
[1745342578043,1.0058578,90716.0,90715.0,0.2204707]
[1745342578264,0.9588678,90716.0,90715.0,0.2204707]
[1745342578596,0.9038278,90716.0,90715.0,0.2204707]
[1745342578805,0.9028278,90716.0,90715.0,0.2204707]
[1745342579253,0.8998278,90716.0,90715.0,0.2234707]
[1745342579683,0.8525778,90716.0,90715.0,0.2234707]
[1745342584447,0.8525778,90716.0,90715.0,0.003]
[1745342585365,0.8515778,90716.0,90714.0,0.22047132]
[1745342585781,0.8515778,90716.0,90715.0,0.003]
[1745342586016,0.96633374,90716.0,90715.0,0.001]
[1745342586234,0.96733374,90716.0,90715.0,0.001]
[1745342586404,0.96833374,90716.0,90715.0,0.002]
[1745342586729,0.97735715,90716.0,90695.0,0.22051932]
[1745342586868,0.11175594,90715.0,90714.0,0.001]
[1745342587277,0.11175594,90715.0,90695.0,0.01102596]
[1745342587479,0.11175594,90715.0,90696.0,0.01102584]
[1745342587888,0.0012051,90714.0,90701.0,0.22050458]
[1745342588092,0.11375594,90713.0,90694.0,0.23154748]
[1745342588473,0.0012051,90712.0,90697.0,0.2205137]
[1745342588708,0.11375594,90711.0,90697.0,0.2205137]
[1745342588919,0.0012051,90710.0,90698.0,0.22051057]
[1745342589161,0.0012051,90710.0,90701.0,0.01102523]
[1745342589162,0.11375594,90709.0,90701.0,0.01102523]
[1745342589386,0.11375594,90709.0,90702.0,0.22050087]
[1745342589600,0.11375594,90709.0,90704.0,0.22049664]
[1745342589796,0.11375594,90709.0,90702.0,0.01102511]
[1745342589797,0.11375594,90709.0,90706.0,0.22049123]
[1745342590395,0.001,90710.0,90706.0,0.22049123]
[1745342590396,0.001,90710.0,90708.0,0.22048771]
[1745342590596,0.003,90709.0,90708.0,0.22048771]
[1745342590804,0.005,90709.0,90708.0,0.22048771]
[1745342590978,0.002,90709.0,90708.0,0.22269242]
[1745342591381,0.006,90709.0,90708.0,0.22269242]
[1745342591845,0.006,90709.0,90708.0,0.22048771]
[1745342592057,0.004,90709.0,90708.0,0.22048771]
[1745342592526,0.007,90709.0,90706.0,0.33293153]
[1745342592657,0.003,90709.0,90708.0,0.22048771]
[1745342592872,0.01,90709.0,90708.0,0.22448771]
[1745342593072,0.007,90709.0,90708.0,0.22048771]
[1745342593276,0.001,90709.0,90708.0,0.22048771]
[1745342593454,0.002,90709.0,90708.0,0.22448771]
[1745342593653,0.002,90709.0,90708.0,0.22048771]
[1745342594072,0.001,90709.0,90708.0,0.22148771]
[1745342594275,0.001,90709.0,90708.0,0.06018017]
[1745342594479,0.003,90709.0,90708.0,0.06018017]
[1745342595513,0.003,90709.0,90708.0,0.001]
[1745342595749,0.11375594,90709.0,90700.0,0.22050536]
[1745342595920,0.11275594,90708.0,90701.0,0.01102523]
[1745342596127,0.11275594,90708.0,90706.0,0.22049193]
[1745342596979,0.11275594,90708.0,90705.0,0.22049498]
[1745342597216,0.11275594,90708.0,90706.0,0.001]
[1745342598076,0.11275594,90708.0,90706.0,0.22149143]
[1745342598279,0.11575594,90708.0,90706.0,0.22249143]
[1745342598476,0.11575594,90708.0,90706.0,0.22249189]
[1745342599278,0.11575594,90708.0,90706.0,0.002]
[1745342599477,0.11275594,90708.0,90703.0,0.22049987]
[1745342599689,0.11275594,90708.0,90706.0,0.001]
[1745342600026,0.11475594,90708.0,90706.0,0.001]
[1745342600661,0.11275594,90708.0,90706.0,0.001]
[1745342600859,0.11375594,90708.0,90703.0,0.22049987]
[1745342601066,0.11375594,90708.0,90701.0,0.22050365]
[1745342601479,0.11275594,90708.0,90703.0,0.22049885]
[1745342602111,0.11375594,90708.0,90703.0,0.22049885]
[1745342602317,0.11275594,90708.0,90702.0,0.2204999]
[1745342602550,0.11275594,90708.0,90692.0,0.01102633]
[1745342602663,0.11575594,90708.0,90697.0,0.23153779]
[1745342602869,0.11575594,90708.0,90702.0,0.22050154]
[1745342603063,0.11275594,90708.0,90703.0,0.001]
[1745342603534,0.11375594,90708.0,90703.0,0.001]
[1745342603731,0.11375594,90708.0,90701.0,0.2205047]
[1745342603913,0.11275594,90708.0,90702.0,0.001]
[1745342604111,0.11575594,90708.0,90702.0,0.001]
[1745342605114,0.01102475,90705.0,90682.0,0.12250754]
[1745342605423,0.11496104,90704.0,90683.0,0.22054698]
[1745342605612,0.11496104,90704.0,90685.0,0.52252217]
[1745342606014,0.11496104,90704.0,90688.0,0.22053491]
[1745342606570,0.11496104,90704.0,90702.0,0.001]
[1745342606777,0.11596104,90704.0,90688.0,0.22053491]
[1745342607143,0.11696104,90704.0,90688.0,0.2225361]
[1745342607261,0.11596104,90704.0,90688.0,0.2225361]
[1745342607478,0.11696104,90704.0,90688.0,0.2225361]
[1745342608801,0.11696104,90704.0,90688.0,0.002]
[1745342609223,0.11696104,90704.0,90688.0,0.22253632]
[1745342609417,0.11696104,90704.0,90689.0,0.22053378]
[1745342609630,0.11696104,90704.0,90688.0,0.22253624]
[1745342609842,0.11696104,90704.0,90688.0,0.002]
[1745342610218,0.11596104,90704.0,90688.0,0.22253426]
[1745342610429,0.11375594,90699.0,90688.0,0.002]
[1745342610632,0.0012051,90698.0,90688.0,0.002]
[1745342610990,0.11375594,90697.0,90688.0,0.002]
[1745342611274,0.0012051,90696.0,90688.0,0.002]
[1745342611469,0.0012051,90696.0,90685.0,0.51149499]
[1745342611470,0.11375594,90695.0,90685.0,0.51149499]
[1745342611681,0.0012051,90694.0,90685.0,0.51149499]
[1745342611859,0.11496104,90693.0,90685.0,0.51149499]
[1745342612067,0.11496104,90693.0,90689.0,0.001]
[1745342612688,0.11496104,90693.0,90685.0,0.51149499]
[1745342612834,0.11496104,90693.0,90685.0,0.51249499]
[1745342613032,0.11796104,90693.0,90685.0,0.51149499]
[1745342613505,0.11496104,90693.0,90685.0,0.51149499]
[1745342613831,0.11896104,90693.0,90685.0,0.51149499]
[1745342614395,0.12096104,90693.0,90689.0,0.001]
[1745342615030,0.0474,90711.0,90705.0,0.22049269]
[1745342615242,0.1,90708.0,90706.0,0.2204913]
[1745342615558,0.11375594,90707.0,90700.0,0.01102535]
[1745342615785,0.11375594,90707.0,90705.0,0.22049286]
[1745342615974,0.11375594,90707.0,90706.0,0.22049258]
[1745342616198,0.11375594,90707.0,90705.0,0.22049286]
[1745342616411,0.11375594,90707.0,90706.0,0.22149258]
[1745342616904,0.003,90707.0,90706.0,0.22149258]
[1745342617318,0.005,90729.0,90706.0,0.22149258]
[1745342617319,0.005,90729.0,90715.0,0.2204707]
[1745342617442,0.005,90729.0,90715.0,0.3318707]
[1745342619020,0.8515778,90716.0,90715.0,0.3318707]
[1745342619612,0.8555778,90716.0,90715.0,0.3328707]
[1745342620994,0.8525778,90716.0,90715.0,0.3318707]
[1745342621193,0.8535778,90716.0,90715.0,0.3328707]
[1745342621451,0.8525778,90716.0,90715.0,0.3328707]
[1745342625236,0.83865896,90716.0,90715.0,0.3328707]
[1745342625448,0.005,90729.0,90715.0,0.6207]
[1745342625665,0.005,90729.0,90728.0,0.26833911]
[1745342625879,0.000848,90745.0,90744.0,0.22040024]
[1745342626090,0.005,90769.0,90747.0,0.22039296]
[1745342626091,0.003304,90749.0,90747.0,0.22039296]
[1745342626289,0.002456,90749.0,90747.0,0.22039296]
[1745342626754,0.00291829,90749.0,90747.0,0.22039296]
[1745342628218,0.00391829,90749.0,90747.0,0.22039296]
[1745342628833,0.00391829,90749.0,90747.0,0.22139296]
[1745342629037,0.00391829,90749.0,90747.0,0.23276957]
[1745342632603,0.00391829,90749.0,90748.0,0.22039053]
[1745342633412,0.00291829,90749.0,90748.0,0.22039053]
[1745342633822,0.11767423,90749.0,90747.0,0.23276957]
[1745342634196,0.11767423,90749.0,90747.0,0.23276922]
[1745342634470,0.11496104,90748.0,90747.0,0.01137661]
[1745342634715,0.11496104,90748.0,90738.0,0.01102074]
[1745342635004,0.11496104,90748.0,90737.0,0.01102086]
[1745342635237,0.11496104,90748.0,90737.0,0.23143738]
[1745342635350,0.11496104,90748.0,90738.0,0.23143391]
[1745342635553,0.11496104,90748.0,90740.0,0.22040991]
[1745342635764,0.11496104,90748.0,90738.0,0.23143391]
[1745342635765,0.11496104,90748.0,90738.0,0.23174551]
[1745342635970,0.11496104,90748.0,90741.0,0.01102037]
[1745342636177,0.11496104,90748.0,90743.0,0.22040152]
[1745342636388,0.11496104,90748.0,90744.0,0.22039973]
[1745342636609,0.11375594,90748.0,90742.0,0.22040409]
[1745342636814,0.11375594,90748.0,90742.0,0.23142434]
[1745342637039,0.00291829,90749.0,90748.0,0.22039053]
[1745342637286,0.11667423,90749.0,90748.0,0.22039053]
[1745342638143,0.11967423,90749.0,90748.0,0.22039053]
[1745342638374,0.11967423,90749.0,90747.0,0.22039296]
[1745342638587,0.12267423,90749.0,90747.0,0.22039296]
[1745342639001,0.12267423,90749.0,90745.0,0.22039659]
[1745342639205,0.11967423,90749.0,90745.0,0.22039659]
[1745342639418,0.11967423,90749.0,90746.0,0.22039458]
[1745342639668,0.12167423,90749.0,90744.0,0.01102001]
[1745342639868,0.12167423,90749.0,90747.0,0.22039271]
[1745342640065,0.12167423,90749.0,90741.0,0.22040554]
[1745342640244,0.12167423,90749.0,90742.0,0.2204051]
[1745342640646,0.16186104,90748.0,90738.0,0.01133234]
[1745342640842,0.16186104,90748.0,90734.0,0.01102122]
[1745342640843,0.16186104,90748.0,90747.0,0.001]
[1745342641470,0.16186104,90748.0,90736.0,0.22041851]
[1745342642279,0.16386104,90748.0,90736.0,0.0114043]
[1745342642482,0.16386104,90748.0,90735.0,0.22042127]
[1745342642975,0.16486104,90748.0,90735.0,0.22042127]
[1745342643174,0.16486104,90748.0,90747.0,0.001]
[1745342643175,0.16886104,90748.0,90747.0,0.001]
[1745342643381,0.21576104,90748.0,90747.0,0.001]
[1745342643587,0.21276104,90748.0,90736.0,0.0112873]
[1745342643794,0.01102074,90738.0,90715.0,0.001]
[1745342643997,0.11375594,90736.0,90718.0,0.01102317]
[1745342644199,0.0012051,90735.0,90719.0,0.22045899]
[1745342644405,0.11375594,90734.0,90718.0,0.01102317]
[1745342644617,0.0012051,90733.0,90726.0,0.01102219]
[1745342644833,0.10581952,90748.0,90726.0,0.01102219]
[1745342644834,0.11375594,90732.0,90729.0,0.22043634]
[1745342645033,0.002,90738.0,90734.0,0.22042399]
[1745342645236,0.11375594,90737.0,90734.0,0.22042399]
[1745342646128,0.11375594,90737.0,90733.0,0.22042655]
[1745342646297,0.11375594,90737.0,90729.0,0.01102183]
[1745342646298,0.001,90734.0,90724.0,0.22044744]
[1745342646499,0.0012051,90733.0,90725.0,0.22044451]
[1745342646709,0.11496104,90733.0,90725.0,0.22044451]
[1745342646912,0.11496104,90733.0,90725.0,0.23146683]
[1745342647141,0.003,90737.0,90734.0,0.01102122]
[1745342647335,0.003,90737.0,90735.0,0.2204221]
[1745342647576,0.001,90748.0,90737.0,0.22041563]
[1745342647784,0.11375594,90747.0,90737.0,0.22041563]
[1745342647958,0.11375594,90747.0,90733.0,0.01102134]
[1745342648201,0.11375594,90747.0,90734.0,0.22042415]
[1745342648352,0.11375594,90747.0,90734.0,0.01102122]
[1745342648705,0.11375594,90747.0,90736.0,0.22041935]
[1745342648862,0.11375594,90747.0,90737.0,0.2204165]
[1745342649329,0.11375594,90747.0,90737.0,0.2214165]
[1745342649498,0.11375594,90747.0,90738.0,0.22041441]
[1745342650252,0.11775594,90747.0,90738.0,0.22041441]
[1745342650600,0.11375594,90747.0,90738.0,0.22041441]
[1745342650801,0.12075594,90747.0,90738.0,0.001]
[1745342651006,0.11775594,90747.0,90738.0,0.001]
[1745342651412,0.12175594,90747.0,90741.0,0.01102037]
[1745342651712,0.12175594,90747.0,90745.0,0.22039711]
[1745342652110,0.12175594,90747.0,90738.0,0.01302074]
[1745342652111,0.12175594,90747.0,90738.0,0.002]
[1745342652291,0.11375594,90747.0,90736.0,0.01102098]
[1745342652512,0.11875594,90747.0,90741.0,0.001]
[1745342652739,0.12475594,90747.0,90741.0,0.002]
[1745342653199,0.11875594,90747.0,90741.0,0.001]
[1745342653636,0.0499,90743.0,90736.0,0.001]
[1745342653864,0.15915594,90742.0,90736.0,0.001]
[1745342654524,0.15915594,90742.0,90741.0,0.001]
[1745342654967,0.11375594,90742.0,90736.0,0.01102098]
[1745342655169,0.001,90748.0,90741.0,0.01102037]
[1745342655382,0.11375594,90747.0,90746.0,0.22039538]
[1745342655852,0.001,90748.0,90747.0,0.26839296]
[1745342656068,0.004,90769.0,90768.0,0.22034197]
[1745342656302,0.004,90769.0,90768.0,0.33378532]
[1745342656523,0.004,90769.0,90768.0,0.33158197]
[1745342656524,0.00409171,90769.0,90768.0,0.33158197]
[1745342657400,0.00409171,90769.0,90768.0,0.34388098]
[1745342657827,0.00409171,90769.0,90768.0,0.34488098]
[1745342657982,0.00409171,90769.0,90768.0,0.34388098]
[1745342658190,0.00409171,90769.0,90768.0,0.39348098]
[1745342658392,0.00409171,90769.0,90768.0,0.39448098]
[1745342660395,0.00409171,90769.0,90768.0,0.34488098]
[1745342663629,0.00409171,90769.0,90768.0,0.01329901]
[1745342663839,0.00409171,90769.0,90768.0,0.34484098]
[1745342664046,0.00409171,90769.0,90768.0,0.01329901]
[1745342664257,0.11784765,90769.0,90768.0,0.01329901]
[1745342664918,0.11884765,90769.0,90768.0,0.002]
[1745342665360,0.11884765,90769.0,90768.0,0.01333014]
[1745342665537,0.11884765,90769.0,90768.0,0.001]
[1745342665915,0.12184765,90769.0,90768.0,0.002]
[1745342666113,0.12184765,90769.0,90768.0,0.001]
[1745342666316,0.11884765,90769.0,90754.0,0.22037481]
[1745342666520,0.11375594,90768.0,90754.0,0.01101879]
[1745342666718,0.11375594,90768.0,90758.0,0.22036464]
[1745342667065,0.11375594,90768.0,90759.0,0.22036334]
[1745342667388,0.11375594,90768.0,90758.0,0.22036596]
[1745342668037,0.11575594,90768.0,90757.0,0.22036752]
[1745342668651,0.11575594,90768.0,90758.0,0.22036537]
[1745342668855,0.11575594,90768.0,90759.0,0.22036146]
[1745342669059,0.11575594,90768.0,90758.0,0.22036505]
[1745342669436,0.11675594,90768.0,90758.0,0.22136505]
[1745342669634,0.11875594,90768.0,90758.0,0.22136505]
[1745342669839,0.11875594,90768.0,90758.0,0.001]
[1745342670219,0.12777303,90768.0,90758.0,0.001]
[1745342670429,0.270263,90760.0,90758.0,0.001]
[1745342670630,0.11375594,90759.0,90758.0,0.001]
[1745342671208,0.33411976,90759.0,90758.0,0.001]
[1745342671400,0.11375594,90759.0,90758.0,0.001]
[1745342672171,0.11375594,90759.0,90750.0,0.01117122]
[1745342672376,0.11375594,90759.0,90740.0,0.22040904]
[1745342672590,0.11975594,90759.0,90758.0,0.002]
[1745342672786,0.11975594,90759.0,90758.0,0.001]
[1745342672987,0.11975594,90759.0,90750.0,0.01100877]
[1745342672988,0.11375594,90759.0,90750.0,0.01100877]
[1745342673186,0.11775594,90759.0,90758.0,0.001]
[1745342673423,0.12175594,90759.0,90758.0,0.001]
[1745342673787,0.12175594,90759.0,90750.0,0.01228438]
[1745342674143,0.11375594,90759.0,90750.0,0.01228438]
[1745342674301,0.11575594,90759.0,90750.0,0.01228438]
[1745342674497,0.11375594,90757.0,90750.0,0.01128438]
[1745342674721,0.11375594,90757.0,90740.0,0.22040882]
[1745342674882,0.11375594,90757.0,90736.0,0.1112]
[1745342675079,0.11375594,90757.0,90738.0,0.2204133]
[1745342675285,0.11375594,90757.0,90738.0,0.23159905]
[1745342675528,0.11375594,90757.0,90738.0,0.02220649]
[1745342675729,0.11375594,90757.0,90742.0,0.22040464]
[1745342676108,0.11475594,90757.0,90742.0,0.22040382]
[1745342676329,0.11475594,90757.0,90744.0,0.22039927]
[1745342676544,0.11375594,90757.0,90745.0,0.2203954]
[1745342676929,0.11475594,90757.0,90742.0,0.22140327]
[1745342677152,0.11475594,90757.0,90733.0,0.22042696]
[1745342677368,0.11475594,90757.0,90740.0,0.22040938]
[1745342677570,0.11475594,90757.0,90738.0,0.22041417]
[1745342677790,0.11575594,90757.0,90739.0,0.01102061]
[1745342678010,0.11575594,90757.0,90741.0,0.22040517]
[1745342678227,0.11575594,90757.0,90742.0,0.22040488]
[1745342678444,0.11475594,90757.0,90741.0,0.22040753]
[1745342678664,0.11475594,90757.0,90745.0,0.001]
[1745342678878,0.11675594,90757.0,90745.0,0.001]
[1745342679330,0.11475594,90757.0,90745.0,0.22039582]
[1745342679587,0.11475594,90757.0,90743.0,0.22040051]
[1745342680005,0.11375594,90757.0,90743.0,0.22040051]
[1745342680179,0.11575594,90757.0,90745.0,0.001]
[1745342680369,0.11575594,90757.0,90754.0,0.22037586]
[1745342680683,0.11575594,90757.0,90755.0,0.22037182]
[1745342680946,0.11775594,90757.0,90755.0,0.22037182]
[1745342681428,0.11775594,90757.0,90748.0,0.22038893]
[1745342681640,0.11575594,90757.0,90753.0,0.2203771]
[1745342681859,0.11775594,90757.0,90751.0,0.2314003]
[1745342682048,0.11775594,90757.0,90753.0,0.01101891]
[1745342682305,0.11575594,90757.0,90753.0,0.01101891]
[1745342682471,0.11375594,90757.0,90756.0,0.2203711]
[1745342682696,0.11675594,90757.0,90756.0,0.2203711]
[1745342682860,0.12075594,90757.0,90756.0,0.2203711]
[1745342683208,0.11775594,90757.0,90755.0,0.22037353]
[1745342683474,0.12675594,90757.0,90755.0,0.22037353]
[1745342683686,0.11875594,90757.0,90753.0,0.22037838]
[1745342683908,0.12375594,90757.0,90756.0,0.001]
[1745342684139,0.12375594,90757.0,90753.0,0.22037726]
[1745342684351,0.12375594,90757.0,90751.0,0.22038248]
[1745342684573,0.12775594,90757.0,90755.0,0.001]
[1745342685256,0.12275594,90757.0,90755.0,0.001]
[1745342685487,0.12775594,90757.0,90755.0,0.001]
[1745342685710,0.11875594,90757.0,90745.0,0.22039551]
[1745342686169,0.12375594,90757.0,90756.0,0.001]
[1745342686389,0.12375594,90757.0,90743.0,0.2314227]
[1745342686390,0.11875594,90757.0,90743.0,0.22040257]
[1745342686619,0.12375594,90757.0,90755.0,0.001]
[1745342686822,0.12275594,90757.0,90755.0,0.001]
[1745342687259,0.12475594,90757.0,90755.0,0.001]
[1745342687510,0.11975594,90757.0,90744.0,0.23142015]
[1745342687701,0.11975594,90757.0,90743.0,0.22040164]
[1745342688134,0.11575594,90757.0,90743.0,0.22040164]
[1745342688339,0.12075594,90757.0,90743.0,0.22040164]
[1745342688692,0.12075594,90757.0,90755.0,0.001]
[1745342688693,0.12575594,90757.0,90755.0,0.001]
[1745342688897,0.11375594,90757.0,90744.0,0.2204]
[1745342689097,0.11475594,90757.0,90746.0,0.22039537]
[1745342689304,0.11575594,90757.0,90746.0,0.22039537]
[1745342689463,0.11475594,90757.0,90743.0,0.01102013]
[1745342689664,0.11975594,90757.0,90755.0,0.001]
[1745342689864,0.12475594,90757.0,90755.0,0.001]
[1745342690065,0.11875594,90757.0,90747.0,0.22039275]
[1745342690292,0.12075594,90757.0,90746.0,0.001]
[1745342690517,0.12075594,90757.0,90746.0,0.22039524]
[1745342690725,0.12075594,90757.0,90744.0,0.2203993]
[1745342690907,0.12075594,90757.0,90746.0,0.22039487]
[1745342691107,0.11575594,90757.0,90746.0,0.22039538]
[1745342691325,0.11575594,90757.0,90742.0,0.22040398]
[1745342691326,0.11675594,90757.0,90741.0,0.22040267]
[1745342691472,0.11675594,90757.0,90743.0,0.22040267]
[1745342691679,0.11675594,90757.0,90746.0,0.22039312]
[1745342691911,0.12075594,90757.0,90755.0,0.001]
[1745342692128,0.12075594,90757.0,90746.0,0.22039312]
[1745342692129,0.11575594,90757.0,90746.0,0.22039312]
[1745342692532,0.11675594,90757.0,90746.0,0.22039312]
[1745342692733,0.11475594,90757.0,90747.0,0.22039279]
[1745342693109,0.12475594,90757.0,90755.0,0.001]
[1745342693290,0.11875594,90757.0,90746.0,0.22039312]
[1745342693489,0.11875594,90757.0,90748.0,0.22038927]
[1745342693715,0.12075594,90757.0,90746.0,0.22139312]
[1745342694131,0.0464,90756.0,90746.0,0.001]
[1745342694352,0.11375594,90755.0,90746.0,0.001]
[1745342694754,0.11375594,90755.0,90738.0,0.23136951]
[1745342695164,0.11375594,90755.0,90738.0,0.01095493]
[1745342695391,0.11375594,90755.0,90737.0,0.23143786]
[1745342695605,0.01102001,90744.0,90737.0,0.01111033]
[1745342695819,0.0484,90756.0,90730.0,0.22043299]
[1745342695820,0.11375594,90743.0,90730.0,0.22043299]
[1745342696178,0.11375594,90743.0,90730.0,0.01116747]
[1745342696340,0.11375594,90743.0,90738.0,0.001]
[1745342696536,0.11375594,90743.0,90730.0,0.22043425]
[1745342696742,0.11375594,90743.0,90730.0,0.23145596]
[1745342696949,0.11375594,90743.0,90737.0,0.001]
[1745342698037,0.11375594,90743.0,90737.0,0.22041682]
[1745342698246,0.11375594,90743.0,90738.0,0.22041482]
[1745342698439,0.11575594,90743.0,90738.0,0.001]
[1745342698682,0.11575594,90743.0,90733.0,0.01102134]
[1745342698907,0.11775594,90743.0,90737.0,0.001]
[1745342699086,0.11975594,90743.0,90737.0,0.001]
[1745342699288,0.11775594,90743.0,90732.0,0.22042918]
[1745342699492,0.11975594,90743.0,90738.0,0.001]
[1745342699713,0.11975594,90743.0,90733.0,0.01102134]
[1745342699875,0.11775594,90743.0,90733.0,0.2204246]
[1745342700201,0.11975594,90743.0,90737.0,0.001]
[1745342700399,0.11775594,90743.0,90737.0,0.001]
[1745342700806,0.11875594,90743.0,90737.0,0.001]
[1745342701162,0.11775594,90743.0,90731.0,0.22043182]
[1745342701375,0.11375594,90743.0,90732.0,0.22042939]
[1745342701575,0.11775594,90743.0,90738.0,0.001]
[1745342702061,0.11575594,90743.0,90733.0,0.22042596]
[1745342702262,0.11775594,90743.0,90733.0,0.22042596]
[1745342702497,0.11575594,90743.0,90733.0,0.22042596]
[1745342702705,0.11575594,90743.0,90732.0,0.22042939]
[1745342702917,0.11775594,90743.0,90732.0,0.23145085]
[1745342703124,0.11675594,90743.0,90730.0,0.01141734]
[1745342703238,0.11775594,90743.0,90732.0,0.22042878]
[1745342703444,0.11775594,90743.0,90733.0,0.2204269]
[1745342703644,0.11675594,90743.0,90731.0,0.22042951]
[1745342703853,0.11875594,90743.0,90731.0,0.23145233]
[1745342704059,0.11875594,90743.0,90732.0,0.23145014]
[1745342704256,0.11675594,90743.0,90730.0,0.0114095]
[1745342704450,0.11675594,90743.0,90730.0,0.01102171]
[1745342704657,0.11475594,90743.0,90728.0,0.23145908]
[1745342704853,0.11475594,90743.0,90732.0,0.001]
[1745342704854,0.11575594,90743.0,90732.0,0.001]
[1745342705052,0.01102098,90736.0,90726.0,0.01105744]
[1745342705329,0.01102098,90736.0,90717.0,0.22046427]
[1745342705330,0.11375594,90735.0,90717.0,0.22046427]
[1745342705615,0.11375594,90735.0,90718.0,0.23148621]
[1745342705828,0.11375594,90735.0,90721.0,0.01142827]
[1745342705959,0.01102244,90724.0,90721.0,0.01142827]
[1745342706163,0.39685048,90722.0,90721.0,0.0004235]
[1745342706380,0.48549676,90722.0,90721.0,0.0004235]
[1745342706590,0.58549676,90722.0,90721.0,0.0004235]
[1745342706805,0.49685048,90722.0,90721.0,0.0004235]
[1745342707003,0.26185594,90722.0,90721.0,0.0004235]
[1745342707217,0.50511251,90722.0,90721.0,0.0004235]
[1745342707812,0.51411251,90722.0,90721.0,0.0004235]
[1745342708237,0.50511251,90722.0,90721.0,0.0004235]
[1745342708458,0.51611251,90722.0,90721.0,0.0004235]
[1745342708657,1.05386456,90722.0,90721.0,0.0004235]
[1745342708954,1.10086456,90722.0,90721.0,0.0004235]
[1745342709162,0.98711251,90722.0,90721.0,0.0004235]
[1745342709773,0.97611251,90722.0,90721.0,0.0004235]
[1745342709966,0.98711251,90722.0,90721.0,0.0004235]
[1745342710433,0.97611251,90722.0,90721.0,0.0004235]
[1745342710825,1.08369166,90722.0,90721.0,0.0004235]
[1745342711228,0.67169166,90722.0,90721.0,0.0004235]
[1745342711430,0.65969166,90722.0,90721.0,0.0004235]
[1745342711626,0.67069166,90722.0,90721.0,0.0004235]
[1745342712004,0.78768,90722.0,90721.0,0.0004235]
[1745342712704,0.68523251,90722.0,90721.0,0.0004235]
[1745342714627,0.23575594,90722.0,90721.0,0.0004235]
[1745342715458,0.022,90722.0,90721.0,0.0004235]
[1745342715887,0.011,90722.0,90721.0,0.0004235]
[1745342716088,0.12475594,90722.0,90721.0,0.0004235]
[1745342716286,0.13075594,90722.0,90721.0,0.0004235]
[1745342716600,0.11975594,90722.0,90721.0,0.0004235]
[1745342716898,0.12675594,90722.0,90721.0,0.0004235]
[1745342717307,0.12175594,90722.0,90721.0,0.0004235]
[1745342717517,0.12375594,90722.0,90721.0,0.0004235]
[1745342718996,0.01,90722.0,90721.0,0.0004235]
[1745342719203,0.01,90722.0,90721.0,0.0014235]
[1745342721540,0.01,90722.0,90721.0,0.22187962]
[1745342723640,0.008,90722.0,90721.0,0.22187962]
[1745342724071,0.009,90722.0,90721.0,0.22287962]
[1745342724434,0.001,90722.0,90721.0,0.22287962]
[1745342725019,0.003,90722.0,90721.0,0.22387962]
[1745342728283,0.003,90722.0,90721.0,0.22608385]
[1745342728666,0.003,90722.0,90721.0,0.22387962]
[1745342729209,0.003,90722.0,90721.0,0.22608385]
[1745342729828,0.003,90722.0,90721.0,0.22387962]
[1745342730824,0.003,90722.0,90721.0,0.22287962]
[1745342731634,0.11675594,90722.0,90721.0,0.0024235]
[1745342732573,0.11575594,90722.0,90721.0,0.0014235]
[1745342732779,0.11375594,90722.0,90721.0,0.0004235]
[1745342732960,0.11475594,90722.0,90721.0,0.0014235]
[1745342733431,0.11375594,90722.0,90721.0,0.0004235]
[1745342733833,0.11875594,90722.0,90721.0,0.0004235]
[1745342734005,0.12075594,90722.0,90721.0,0.0014235]
[1745342734206,0.12075594,90722.0,90721.0,0.0004235]
[1745342734207,0.11375594,90722.0,90721.0,0.0004235]
[1745342734613,0.11975594,90722.0,90721.0,0.0004235]
[1745342735212,0.12475594,90722.0,90721.0,0.0004235]
[1745342735422,0.12275594,90722.0,90721.0,0.0004235]
[1745342735846,0.12375594,90722.0,90721.0,0.0004235]
[1745342736199,0.12875594,90722.0,90721.0,0.0004235]
[1745342736447,0.12875594,90722.0,90711.0,0.22047987]
[1745342736685,0.11375594,90721.0,90720.0,0.22045817]
[1745342737873,0.11875594,90721.0,90720.0,0.22045817]
[1745342738069,0.11875594,90721.0,90719.0,0.22046063]
[1745342738495,0.11875594,90721.0,90720.0,0.22045855]
[1745342739288,0.12275594,90721.0,90720.0,0.22045855]
[1745342739859,0.11875594,90721.0,90720.0,0.22045855]
[1745342740067,0.11375594,90721.0,90720.0,0.22045855]
[1745342740288,0.11775594,90721.0,90720.0,0.22045855]
[1745342740895,0.11775594,90721.0,90719.0,0.22046063]
[1745342741211,0.12175594,90721.0,90720.0,0.22045855]
[1745342741813,0.11375594,90721.0,90720.0,0.22045855]
[1745342742263,0.11775594,90721.0,90720.0,0.22045855]
[1745342742460,0.004,90721.0,90720.0,0.22045855]
[1745342742672,0.00011201,90724.0,90723.0,0.22045126]
[1745342742873,0.11386795,90724.0,90723.0,0.22045126]
[1745342743695,0.11986795,90724.0,90723.0,0.22045126]
[1745342745381,0.12486795,90724.0,90723.0,0.22045126]
[1745342748774,0.01111201,90724.0,90723.0,0.22045126]
[1745342753220,0.002065,90743.0,90742.0,0.2204051]
[1745342753393,0.11591767,90743.0,90742.0,0.2204051]
[1745342754202,0.12191767,90743.0,90742.0,0.2204051]
[1745342754596,0.00816173,90743.0,90742.0,0.2204051]